bitfinex-derivatives/quotes_SOLF0:USTF0_20241120
["timestamp","ask_amount","ask_price","bid_price","bid_amount"]
[1732131274408,2.1497,232.39,232.34,2.1501]
[1732131274804,0.6129971,232.48,232.38,10.67913103]
[1732131275000,0.6129971,232.48,232.43,2.1493]
[1732131277803,0.6129971,232.48,232.47,2.1489]
[1732131278005,0.6129971,232.48,232.47,15.56803103]
[1732131280002,0.56573831,232.56,232.51,2.1486]
[1732131283209,0.56573831,232.56,232.49,2.1487]
[1732131283509,0.56573831,232.56,232.5,2.74]
[1732131283807,0.56573831,232.56,232.47,10.67913103]
[1732131284008,0.56573831,232.56,232.45,2.1491]
[1732131284309,0.56573831,232.56,232.44,13.41913103]
[1732131285110,2.1487,232.5,232.44,13.41913103]
[1732131285405,11.24486934,232.56,232.44,13.41913103]
[1732131285606,2.1486,232.51,232.44,13.41913103]
[1732131286310,2.1486,232.51,232.44,2.74]
[1732131286710,2.1485,232.53,232.45,10.67913103]
[1732131287009,0.56573831,232.56,232.45,10.67913103]
[1732131288109,0.56573831,232.56,232.5,2.1486]
[1732131288606,0.56573831,232.56,232.46,10.67913103]
[1732131289311,2.1482,232.55,232.46,10.67913103]
[1732131291407,0.56573831,232.56,232.46,10.67913103]
[1732131291614,0.56573831,232.56,232.49,2.1487]
[1732131292014,2.1482,232.55,232.49,2.1487]
[1732131292616,0.56573831,232.56,232.5,2.1486]
[1732131293120,2.71383831,232.56,232.5,2.1486]
[1732131293319,0.56573831,232.56,232.51,2.1486]
[1732131293716,0.56573831,232.56,232.51,4.8886]
[1732131301730,0.64693245,232.52,232.51,2.74]
[1732131302229,0.64693245,232.52,232.51,4.8886]
[1732131303227,0.64693245,232.52,232.51,2.74]
[1732131305433,0.64693245,232.52,232.5,2.1486]
[1732131305930,0.64693245,232.52,232.51,2.1486]
[1732131306231,0.64693245,232.52,232.49,4.8887]
[1732131306431,0.64693245,232.52,232.49,2.74]
[1732131308631,0.64693245,232.52,232.5,2.1487]
[1732131309023,0.64693245,232.52,232.44,10.67913103]
[1732131309227,0.64693245,232.52,232.44,13.41913103]
[1732131309631,0.64693245,232.52,232.47,10.67913103]
[1732131310237,0.64693245,232.52,232.38,23.7396157]
[1732131310429,0.64693245,232.52,232.36,16.61403495]
[1732131310631,0.64693245,232.52,232.36,10.67913103]
[1732131310931,0.64693245,232.52,232.33,2.74]
[1732131310932,0.64693245,232.52,232.39,10.67913103]
[1732131311323,0.64693245,232.52,232.4,2.1496]
[1732131311723,0.64693245,232.52,232.39,13.41913103]
[1732131312124,2.1488,232.49,232.39,13.41913103]
[1732131312330,0.64693245,232.52,232.39,13.41913103]
[1732131312331,0.64693245,232.52,232.42,10.67913103]
[1732131312525,0.64693245,232.52,232.39,2.74]
[1732131312526,2.79543245,232.52,232.47,2.1489]
[1732131312730,2.79543245,232.52,232.45,10.67913103]
[1732131312731,0.64693245,232.52,232.45,10.67913103]
[1732131313126,2.79543245,232.52,232.46,2.149]
[1732131313533,0.64693245,232.52,232.45,10.67913103]
[1732131313834,0.64693245,232.52,232.47,2.1489]
[1732131314035,0.64693245,232.52,232.45,10.67913103]
[1732131314325,0.64693245,232.52,232.48,2.1488]
[1732131314534,0.64693245,232.52,232.45,10.67913103]
[1732131314935,0.64693245,232.52,232.45,12.82813103]
[1732131315135,0.64693245,232.52,232.45,10.67913103]
[1732131315635,0.64693245,232.52,232.46,2.1489]
[1732131316033,0.64693245,232.52,232.45,10.67913103]
[1732131316331,2.1487,232.51,232.44,2.1492]
[1732131317330,2.1489,232.48,232.42,2.1493]
[1732131317534,2.1489,232.48,232.42,2.74]
[1732131318634,2.1487,232.5,232.43,2.1493]
[1732131319037,0.64693245,232.52,232.43,2.1493]
[1732131319238,0.64693245,232.52,232.42,2.74]
[1732131319437,2.1488,232.49,232.42,4.8894]
[1732131319742,2.1488,232.49,232.42,2.74]
[1732131320634,2.1485,232.49,232.43,2.1491]
[1732131320842,0.64693245,232.52,232.39,10.67913103]
[1732131321035,10.67913103,232.5,232.37,2.1496]
[1732131321234,3.9937,232.49,232.36,2.74]
[1732131321538,2.1493,232.41,232.36,2.74]
[1732131321840,3.9937,232.49,232.36,2.74]
[1732131321841,2.74,232.48,232.36,2.74]
[1732131322141,2.74,232.48,232.38,10.67913103]
[1732131322339,2.1489,232.45,232.39,2.1494]
[1732131322734,2.74,232.48,232.39,2.1494]
[1732131322735,2.149,232.44,232.39,2.1494]
[1732131323639,2.1489,232.46,232.4,2.1493]
[1732131323939,3.9937,232.49,232.38,10.67913103]
[1732131324140,2.149,232.45,232.39,2.1494]
[1732131324445,3.9937,232.49,232.38,10.67913103]
[1732131324744,3.9937,232.49,232.41,2.1492]
[1732131324745,2.1488,232.47,232.41,2.1492]
[1732131324938,2.1488,232.47,232.38,10.67913103]
[1732131325238,3.9937,232.49,232.41,10.67913103]
[1732131325448,2.1485,232.49,232.41,10.67913103]
[1732131325642,2.1485,232.49,232.42,2.74]
[1732131326044,2.1485,232.49,232.43,2.149]
[1732131326441,0.64693245,232.52,232.43,2.149]
[1732131326442,2.1487,232.48,232.43,2.149]
[1732131329347,2.1487,232.48,232.42,4.8891]
[1732131329547,2.1487,232.48,232.42,2.74]
[1732131330042,2.1485,232.5,232.44,10.67913103]
[1732131330245,0.64693245,232.52,232.44,10.67913103]
[1732131330749,0.64693245,232.52,232.46,6.81714299]
[1732131331242,2.1485,232.5,232.46,6.81714299]
[1732131332142,2.1485,232.49,232.46,6.81714299]
[1732131332542,0.64693245,232.52,232.34,19.95792546]
[1732131332543,6.81714299,232.47,232.38,6.81714299]
[1732131332842,3.38693245,232.52,232.42,6.81714299]
[1732131333043,6.81714299,232.5,232.42,6.81714299]
[1732131333246,2.1489,232.45,232.42,6.81714299]
[1732131336239,6.81714299,232.5,232.42,6.81714299]
[1732131337647,2.149,232.45,232.42,6.81714299]
[1732131337847,6.81714299,232.5,232.42,6.81714299]
[1732131338248,2.149,232.44,232.42,6.81714299]
[1732131339853,2.1489,232.45,232.42,6.81714299]
[1732131340049,12.9,232.51,232.32,5.93490392]
[1732131340245,2.1498,232.35,232.32,6.81714299]
[1732131340450,6.81714299,232.39,232.32,6.81714299]
[1732131340948,2.1496,232.37,232.32,6.81714299]
[1732131341157,6.81714299,232.39,232.32,6.81714299]
[1732131341959,6.81714299,232.41,232.32,6.81714299]
[1732131342350,2.1498,232.36,232.34,6.81714299]
[1732131342552,6.81714299,232.41,232.34,6.81714299]
[1732131342753,10.65234299,232.43,232.36,6.81714299]
[1732131342954,2.1496,232.38,232.36,6.81714299]
[1732131343349,3.8352,232.43,232.36,6.81714299]
[1732131343550,2.1494,232.39,232.36,6.81714299]
[1732131343747,3.8352,232.43,232.38,6.81714299]
[1732131343949,2.1494,232.39,232.38,6.81714299]
[1732131344253,3.8352,232.43,232.38,6.81714299]
[1732131346759,3.8352,232.43,232.36,8.96684299]
[1732131347056,3.8352,232.43,232.36,6.81714299]
[1732131347355,2.1495,232.39,232.36,6.81714299]
[1732131347659,3.8352,232.43,232.32,2.1501]
[1732131347660,6.81714299,232.38,232.32,2.1501]
[1732131348458,2.1498,232.36,232.32,2.1501]
[1732131348858,2.1498,232.36,232.31,8.96734299]
[1732131349857,2.1499,232.35,232.3,2.72]
[1732131350052,2.1499,232.35,232.33,6.81714299]
[1732131350459,2.1499,232.34,232.33,6.81714299]
[1732131350960,2.1498,232.35,232.33,6.81714299]
[1732131351664,6.81714299,232.42,232.33,6.81714299]
[1732131351869,2.1496,232.37,232.36,6.81714299]
[1732131352265,1.3247,232.43,232.36,6.81714299]
[1732131352463,2.1494,232.4,232.38,6.81714299]
[1732131352664,6.81714299,232.46,232.38,6.81714299]
[1732131353060,2.149,232.44,232.38,6.81714299]
[1732131353265,6.81714299,232.46,232.38,6.81714299]
[1732131353570,6.81714299,232.46,232.38,8.96664299]
[1732131353769,2.1492,232.41,232.38,8.96664299]
[1732131355466,6.81714299,232.47,232.38,8.96664299]
[1732131355863,2.1492,232.41,232.38,8.96664299]
[1732131357766,2.1492,232.41,232.38,6.81714299]
[1732131358071,2.1493,232.4,232.38,6.81714299]
[1732131358271,6.81714299,232.43,232.36,6.81714299]
[1732131358473,2.1496,232.37,232.32,2.72]
[1732131358774,2.1496,232.37,232.35,6.81714299]
[1732131359273,2.1495,232.38,232.35,6.81714299]
[1732131360173,6.81714299,232.43,232.35,6.81714299]
[1732131361064,6.81714299,232.45,232.37,6.81714299]
[1732131361269,2.1495,232.39,232.37,6.81714299]
[1732131361666,6.81714299,232.45,232.37,6.81714299]
[1732131361864,2.1494,232.39,232.37,6.81714299]
[1732131362671,2.1493,232.41,232.37,6.81714299]
[1732131363172,6.81714299,232.46,232.37,8.96674299]
[1732131363370,6.81714299,232.46,232.37,6.81714299]
[1732131363567,1.5694,232.49,232.41,6.81714299]
[1732131363774,2.1491,232.43,232.41,6.81714299]
[1732131364376,2.149,232.45,232.41,6.81714299]
[1732131364571,4.86153831,232.56,232.43,6.81714299]
[1732131364572,2.72,232.55,232.43,6.81714299]
[1732131364775,6.81714299,232.55,232.47,6.81714299]
[1732131364981,2.1485,232.5,232.47,6.81714299]
[1732131365177,1.86963831,232.56,232.49,6.81714299]
[1732131365573,2.1481,232.53,232.49,6.81714299]
[1732131365777,1.86963831,232.56,232.51,6.81714299]
[1732131365977,2.148,232.54,232.51,6.81714299]
[1732131366178,0.56573831,232.56,232.51,6.81714299]
[1732131366770,2.148,232.55,232.51,6.81714299]
[1732131367079,0.56573831,232.56,232.51,6.81714299]
[1732131367582,2.71363831,232.56,232.51,6.81714299]
[1732131367778,0.56573831,232.56,232.51,6.81714299]
[1732131368083,0.56573831,232.56,232.51,9.53714299]
[1732131368380,0.56573831,232.56,232.51,11.68544299]
[1732131368772,0.56573831,232.56,232.51,13.36264603]
[1732131368974,0.56573831,232.56,232.52,2.1482]
[1732131369977,0.56573831,232.56,232.53,2.1481]
[1732131370484,0.56573831,232.56,232.54,10.64264603]
[1732131370980,0.56573831,232.56,232.55,2.1479]
[1732131372279,0.56573831,232.56,232.54,12.79064603]
[1732131372480,0.56573831,232.56,232.54,10.64264603]
[1732131373075,0.56573831,232.56,232.55,2.1479]
[1732131376686,0.56573831,232.56,232.54,10.64264603]
[1732131376984,0.56573831,232.56,232.55,2.72]
[1732131378084,0.56573831,232.56,232.45,10.64264603]
[1732131378387,0.56573831,232.56,232.48,10.64264603]
[1732131379183,0.56573831,232.56,232.49,2.72]
[1732131379382,0.56573831,232.56,232.51,10.64264603]
[1732131380783,0.56573831,232.56,232.54,10.64264603]
[1732131382183,0.56573831,232.56,232.55,2.1478]
[1732131383288,0.56573831,232.56,232.55,4.8678]
[1732131388694,0.56573831,232.56,232.55,11.67588257]
[1732131395595,0.56573831,232.56,232.55,4.8678]
[1732131395903,0.56573831,232.56,232.55,11.67588257]
[1732131396400,0.56573831,232.56,232.46,5.92298209]
[1732131396598,0.56573831,232.56,232.55,6.80808257]
[1732131396804,0.56573831,232.56,232.53,6.80808257]
[1732131398603,0.56573831,232.56,232.51,4.8683]
[1732131398803,0.56573831,232.56,232.51,2.72]
[1732131399008,7.37382088,232.56,232.48,6.80808257]
[1732131399306,7.37382088,232.56,232.46,6.80808257]
[1732131399307,2.1483,232.52,232.46,6.80808257]
[1732131399506,2.1483,232.52,232.43,2.72]
[1732131399708,2.1483,232.52,232.46,6.80808257]
[1732131399905,6.80808257,232.54,232.46,6.80808257]
[1732131400398,0.56573831,232.56,232.5,6.80808257]
[1732131400599,0.56573831,232.56,232.52,6.80808257]
[1732131401906,2.71363831,232.56,232.52,6.80808257]
[1732131402705,2.148,232.55,232.52,6.80808257]
[1732131402901,2.148,232.55,232.5,6.80808257]
[1732131403107,6.80808257,232.53,232.46,6.80808257]
[1732131403415,2.1484,232.51,232.46,6.80808257]
[1732131404513,2.1487,232.47,232.4,2.1493]
[1732131404810,0.56573831,232.56,232.42,6.80808257]
[1732131404811,6.80808257,232.49,232.42,6.80808257]
[1732131405110,2.1486,232.49,232.44,6.80808257]
[1732131405511,6.80808257,232.51,232.44,6.80808257]
[1732131405712,2.1485,232.49,232.44,6.80808257]
[1732131406813,2.1484,232.51,232.46,6.80808257]
[1732131407009,2.1484,232.51,232.48,6.80808257]
[1732131407410,2.1481,232.54,232.5,8.95648257]
[1732131407603,0.56573831,232.56,232.5,8.95648257]
[1732131407805,0.56573831,232.56,232.5,6.80808257]
[1732131408214,0.56573831,232.56,232.51,2.1483]
[1732131408411,0.56573831,232.56,232.5,6.80808257]
[1732131409208,2.1482,232.53,232.5,6.80808257]
[1732131409416,6.80808257,232.55,232.47,6.80808257]
[1732131409915,2.1483,232.52,232.47,8.95678257]
[1732131410306,6.80808257,232.55,232.48,2.1486]
[1732131410307,2.1482,232.53,232.48,2.1486]
[1732131410611,2.1482,232.53,232.49,6.80808257]
[1732131410811,2.1481,232.54,232.5,2.1484]
[1732131411014,0.56573831,232.56,232.49,6.80808257]
[1732131411517,2.1482,232.54,232.49,8.95658257]
[1732131411712,0.56573831,232.56,232.49,8.95658257]
[1732131412716,2.1481,232.54,232.49,8.95658257]
[1732131412912,0.56573831,232.56,232.49,8.95658257]
[1732131414007,2.1481,232.54,232.49,8.95658257]
[1732131414211,0.56573831,232.56,232.49,8.95658257]
[1732131414909,6.80808257,232.53,232.47,2.1487]
[1732131415616,2.1484,232.51,232.48,2.1486]
[1732131415815,2.1484,232.51,232.48,8.95668257]
[1732131416211,2.1483,232.52,232.48,8.95668257]
[1732131417314,6.80808257,232.55,232.48,6.80808257]
[1732131417615,2.1484,232.51,232.48,6.80808257]
[1732131417810,6.80808257,232.51,232.41,2.72]
[1732131418016,6.80808257,232.51,232.41,4.8693]
[1732131418215,6.80808257,232.51,232.42,6.80808257]
[1732131418522,2.1491,232.44,232.4,6.80808257]
[1732131418717,2.72,232.53,232.39,6.80808257]
[1732131418718,6.80808257,232.47,232.39,6.80808257]
[1732131419020,2.149,232.45,232.41,6.80808257]
[1732131419915,6.80808257,232.49,232.41,8.95728257]
[1732131420119,6.80808257,232.5,232.43,6.80808257]
[1732131420422,2.1486,232.48,232.43,6.80808257]
[1732131420626,6.80808257,232.5,232.43,6.80808257]
[1732131421122,2.1487,232.48,232.43,6.80808257]
[1732131421814,2.1487,232.48,232.44,2.149]
[1732131422120,2.1485,232.5,232.45,6.80808257]
[1732131422321,8.06278257,232.52,232.45,6.80808257]
[1732131422522,2.1485,232.5,232.45,8.95688257]
[1732131422914,8.06278257,232.52,232.45,2.1488]
[1732131423120,2.1486,232.48,232.43,6.80808257]
[1732131423725,6.80808257,232.48,232.36,4.0484]
[1732131423920,6.80808257,232.48,232.39,6.80808257]
[1732131424320,6.80808257,232.46,232.39,6.80808257]
[1732131425025,2.149,232.44,232.39,6.80808257]
[1732131425817,2.72,232.49,232.41,6.80808257]
[1732131426023,1.2547,232.52,232.43,6.80808257]
[1732131426320,2.149,232.44,232.39,6.80808257]
[1732131426822,6.80808257,232.48,232.41,6.80808257]
[1732131427015,6.80808257,232.5,232.41,6.80808257]
[1732131427420,2.1487,232.48,232.43,2.149]
[1732131427642,1.2547,232.52,232.45,6.80808257]
[1732131427925,1.2547,232.52,232.36,4.0484]
[1732131427926,1.2547,232.52,232.47,6.80808257]
[1732131428325,2.1482,232.53,232.49,2.1485]
[1732131431831,2.148,232.55,232.51,2.1483]
[1732131432134,0.56573831,232.56,232.44,10.64800995]
[1732131432634,2.148,232.55,232.44,10.64800995]
[1732131432828,0.56573831,232.56,232.44,10.64800995]
[1732131433235,2.71363831,232.56,232.5,2.1484]
[1732131433432,2.71363831,232.56,232.48,2.72]
[1732131433433,0.56573831,232.56,232.48,2.72]
[1732131433930,0.56573831,232.56,232.53,2.1482]
[1732131434333,0.56573831,232.56,232.5,10.64800995]
[1732131434636,0.56573831,232.56,232.55,2.148]
[1732131435033,0.56573831,232.56,232.49,1.3312]
[1732131435733,0.56573831,232.56,232.52,2.1482]
[1732131436140,0.56573831,232.56,232.5,10.64800995]
[1732131436338,0.56573831,232.56,232.52,2.1482]
[1732131436636,0.56573831,232.56,232.5,10.64800995]
[1732131437035,0.56573831,232.56,232.52,2.1482]
[1732131437434,0.56573831,232.56,232.5,10.64800995]
[1732131437635,0.56573831,232.56,232.53,2.1481]
[1732131437835,0.56573831,232.56,232.54,2.72]
[1732131438434,0.56573831,232.56,232.55,2.148]
[1732131439138,0.58717632,232.59,232.54,2.72]
[1732131439339,0.58717632,232.59,232.58,2.1477]
[1732131441933,0.57288812,232.63,232.61,2.1473]
[1732131442140,0.57288812,232.63,232.56,10.64800995]
[1732131442438,0.57288812,232.63,232.59,10.64800995]
[1732131442639,0.57288812,232.63,232.6,2.1475]
[1732131443141,0.57288812,232.63,232.61,2.1474]
[1732131443743,0.57288812,232.63,232.56,10.64800995]
[1732131444343,0.57288812,232.63,232.6,2.1475]
[1732131446740,0.57288812,232.63,232.56,10.64800995]
[1732131447337,0.57288812,232.63,232.58,2.1477]
[1732131447645,0.57288812,232.63,232.56,10.64800995]
[1732131448047,0.57288812,232.63,232.55,1.2259]
[1732131448048,0.57288812,232.63,232.62,2.1473]
[1732131450445,0.57288812,232.63,232.61,2.1474]
[1732131450848,0.57288812,232.63,232.62,2.1473]
[1732131453347,0.57288812,232.63,232.62,8.95345302]
[1732131455545,0.56113978,232.66,232.65,2.1471]
[1732131456045,0.56113978,232.66,232.65,8.95325302]
[1732131457553,0.56113978,232.66,232.65,2.1471]
[1732131458152,0.56113978,232.66,232.55,1.2259]
[1732131458354,0.56113978,232.66,232.61,6.80615302]
[1732131460049,0.56113978,232.66,232.56,2.72]
[1732131460050,0.56113978,232.66,232.65,6.80615302]
[1732131460954,0.56113978,232.66,232.63,6.80615302]
[1732131461951,0.56113978,232.66,232.62,2.72]
[1732131462151,0.56113978,232.66,232.63,6.80615302]
[1732131462857,0.56113978,232.66,232.64,2.1471]
[1732131463853,0.56113978,232.66,232.63,8.95335302]
[1732131464054,0.56113978,232.66,232.62,2.72]
[1732131465062,6.80615302,232.65,232.62,2.72]
[1732131465257,6.80615302,232.65,232.58,6.80615302]
[1732131465557,6.80615302,232.65,232.57,2.1477]
[1732131465861,6.80615302,232.65,232.57,6.80615302]
[1732131466062,2.1472,232.64,232.58,2.1477]
[1732131466854,0.56113978,232.66,232.61,6.80615302]
[1732131466855,2.70823978,232.66,232.61,6.80615302]
[1732131467656,2.1471,232.65,232.59,6.80615302]
[1732131467859,0.56113978,232.66,232.59,6.80615302]
[1732131468761,2.1471,232.65,232.59,8.95365302]
[1732131469064,6.80615302,232.65,232.59,6.80615302]
[1732131470264,2.1472,232.64,232.59,8.95375302]
[1732131470464,6.80615302,232.65,232.59,8.95375302]
[1732131470766,6.80615302,232.65,232.59,8.95365302]
[1732131470767,2.1471,232.65,232.59,8.95365302]
[1732131471654,2.1472,232.64,232.59,8.95365302]
[1732131472468,0.56113978,232.66,232.59,8.95365302]
[1732131472665,8.95325302,232.65,232.59,8.95365302]
[1732131472865,2.1471,232.65,232.59,8.95365302]
[1732131473161,8.95325302,232.65,232.59,8.95365302]
[1732131475361,2.1472,232.64,232.59,2.1475]
[1732131476261,6.80615302,232.61,232.52,85.99103]
[1732131476460,0.56113978,232.66,232.52,85.99103]
[1732131476461,6.80615302,232.55,232.52,85.99103]
[1732131477164,2.1481,232.54,232.52,85.99103]
[1732131477361,6.80615302,232.55,232.52,85.99103]
[1732131477560,6.80615302,232.59,232.53,2.1481]
[1732131477967,6.80615302,232.59,232.52,85.99103]
[1732131478167,6.80615302,232.59,232.54,2.1481]
[1732131478468,6.80615302,232.63,232.53,2.7]
[1732131478660,8.95335302,232.64,232.58,2.1476]
[1732131479065,8.95335302,232.64,232.57,6.80615302]
[1732131479465,8.95335302,232.64,232.58,2.1477]
[1732131480468,6.80615302,232.62,232.55,6.80615302]
[1732131480661,6.80615302,232.6,232.53,9.50615302]
[1732131480862,6.80615302,232.6,232.53,6.80615302]
[1732131481268,2.1476,232.59,232.53,6.80615302]
[1732131481766,6.80615302,232.6,232.53,6.80615302]
[1732131481958,0.56113978,232.66,232.52,88.69103]
[1732131481959,6.80615302,232.58,232.52,88.69103]
[1732131482267,2.1479,232.56,232.52,88.69103]
[1732131482468,6.80615302,232.58,232.52,88.69103]
[1732131482966,2.1478,232.57,232.52,88.69103]
[1732131483266,6.80615302,232.6,232.53,6.80615302]
[1732131483563,6.80615302,232.6,232.52,88.69103]
[1732131483564,6.80615302,232.58,232.52,88.69103]
[1732131483769,6.80615302,232.56,232.52,85.99103]
[1732131484161,2.1481,232.54,232.52,85.99103]
[1732131484862,2.1482,232.53,232.52,85.99103]
[1732131485071,3.8634,232.58,232.52,85.99103]
[1732131486469,2.1479,232.57,232.52,85.99103]
[1732131486669,3.8634,232.58,232.52,85.99103]
[1732131487067,2.1479,232.57,232.52,85.99103]
[1732131487272,3.8634,232.58,232.52,85.99103]
[1732131487967,2.1479,232.56,232.52,88.13923]
[1732131488167,3.8634,232.58,232.52,88.13923]
[1732131488769,2.1479,232.57,232.53,2.1481]
[1732131489065,2.5251,232.58,232.52,85.99103]
[1732131489260,2.5251,232.58,232.55,2.148]
[1732131489461,2.7,232.64,232.55,2.148]
[1732131489660,2.5738,232.64,232.52,85.99103]
[1732131489861,2.1475,232.61,232.57,2.1477]
[1732131490070,2.5738,232.64,232.52,85.99103]
[1732131490262,2.1476,232.6,232.55,2.1479]
[1732131490570,2.5738,232.64,232.55,2.1479]
[1732131490768,2.1476,232.59,232.55,2.1479]
[1732131490965,2.1476,232.59,232.56,2.1479]
[1732131491169,2.5738,232.64,232.56,2.1479]
[1732131492270,2.5738,232.64,232.58,2.1477]
[1732131492662,4.721,232.64,232.53,10.64751406]
[1732131492860,4.721,232.64,232.59,2.1475]
[1732131493066,0.56113978,232.66,232.57,2.7]
[1732131493269,2.1471,232.65,232.57,2.7]
[1732131493468,2.1471,232.65,232.6,2.1475]
[1732131494262,0.56113978,232.66,232.57,2.7]
[1732131494462,0.56113978,232.66,232.63,2.1472]
[1732131494667,0.56113978,232.66,232.59,10.64751406]
[1732131494868,0.56113978,232.66,232.63,2.1472]
[1732131495966,0.56113978,232.66,232.61,2.1474]
[1732131496671,0.56113978,232.66,232.57,2.7]
[1732131496967,0.56113978,232.66,232.56,10.64751406]
[1732131497165,2.1471,232.65,232.59,2.1475]
[1732131498973,0.56113978,232.66,232.57,2.7]
[1732131499571,0.56113978,232.66,232.56,13.34751406]
[1732131500474,2.1471,232.65,232.59,2.1475]
[1732131501569,2.1471,232.65,232.6,2.1475]
[1732131503379,0.56113978,232.66,232.56,13.34751406]
[1732131503579,2.1472,232.64,232.58,2.1476]
[1732131503874,0.56113978,232.66,232.56,13.34751406]
[1732131504386,0.56113978,232.66,232.6,2.1475]
[1732131504984,2.70823978,232.66,232.6,2.1475]
[1732131505280,0.56113978,232.66,232.59,10.64751406]
[1732131505888,0.56113978,232.66,232.62,2.1473]
[1732131506788,0.56113978,232.66,232.64,6.80508467]
[1732131507889,0.56113978,232.66,232.65,2.1471]
[1732131509385,0.56113978,232.66,232.65,8.95218467]
[1732131512190,0.56551961,232.73,232.68,2.1467]
[1732131512393,0.56551961,232.73,232.69,6.80508467]
[1732131512790,0.56551961,232.73,232.63,1.2863]
[1732131513097,0.56551961,232.73,232.69,6.80508467]
[1732131514392,0.56551961,232.73,232.69,8.95178467]
[1732131515891,7.37060428,232.73,232.68,2.7]
[1732131516292,6.80508467,232.71,232.68,2.7]
[1732131516491,6.80508467,232.71,232.63,10.79138467]
[1732131516799,6.80508467,232.71,232.64,6.80508467]
[1732131516996,2.63265373,232.7,232.64,6.80508467]
[1732131517591,2.63265373,232.7,232.64,8.95218467]
[1732131517592,0.48595373,232.7,232.64,8.95218467]
[1732131517791,2.1467,232.69,232.64,8.95218467]
[1732131518103,6.80508467,232.65,232.52,85.99103]
[1732131518295,6.80508467,232.59,232.52,85.99103]
[1732131518600,6.80508467,232.61,232.53,6.80508467]
[1732131518800,2.1475,232.6,232.53,6.80508467]
[1732131519400,2.61884453,232.7,232.57,6.80508467]
[1732131519401,2.7,232.67,232.57,6.80508467]
[1732131519701,0.48595373,232.7,232.57,6.80508467]
[1732131519902,6.80508467,232.66,232.57,6.80508467]
[1732131520092,6.80508467,232.66,232.57,8.95278467]
[1732131520093,2.1471,232.65,232.57,8.95278467]
[1732131520497,2.1471,232.65,232.57,6.80508467]
[1732131520703,2.1471,232.65,232.56,10.63754728]
[1732131521092,2.147,232.66,232.56,10.63754728]
[1732131521399,11.12350101,232.7,232.56,10.63754728]
[1732131521703,2.1469,232.67,232.61,2.1474]
[1732131521899,11.12350101,232.7,232.61,2.1474]
[1732131522301,2.1467,232.69,232.63,2.1472]
[1732131522702,2.1467,232.69,232.59,13.33754728]
[1732131522900,2.1468,232.68,232.61,2.1473]
[1732131523099,2.1468,232.68,232.59,13.33754728]
[1732131524301,2.1468,232.68,232.62,2.1473]
[1732131526007,2.1469,232.67,232.61,2.1474]
[1732131527399,0.48595373,232.7,232.62,2.1473]
[1732131527400,2.1468,232.68,232.62,2.1473]
[1732131528099,0.48595373,232.7,232.59,2.7]
[1732131528405,0.48595373,232.7,232.62,10.63754728]
[1732131529206,2.63255373,232.7,232.64,2.1472]
[1732131530104,2.63255373,232.7,232.64,2.1471]
[1732131530310,2.63255373,232.7,232.62,10.63754728]
[1732131530509,0.48595373,232.7,232.62,10.63754728]
[1732131530905,0.48595373,232.7,232.66,2.147]
[1732131531401,0.48595373,232.7,232.67,2.1469]
[1732131533208,0.48595373,232.7,232.66,2.1469]
[1732131533704,0.48595373,232.7,232.67,2.1469]
[1732131533909,0.48595373,232.7,232.67,1.2655]
[1732131534301,0.48595373,232.7,232.69,2.1467]
[1732131535109,0.48595373,232.7,232.68,12.78434728]
[1732131535304,0.48595373,232.7,232.68,10.63754728]
[1732131536209,0.48595373,232.7,232.69,2.1467]
[1732131540214,0.48595373,232.7,232.67,3.4123]
[1732131540416,0.48595373,232.7,232.67,1.2655]
[1732131540612,0.48595373,232.7,232.69,6.80244087]
[1732131541207,0.48595373,232.7,232.67,1.2655]
[1732131541418,0.48595373,232.7,232.69,6.80244087]
[1732131545315,0.48595373,232.7,232.68,8.94924087]
[1732131546110,0.48595373,232.7,232.67,1.2655]
[1732131546313,0.48595373,232.7,232.69,6.80244087]
[1732131547016,0.48595373,232.7,232.66,1.301]
[1732131547313,2.1468,232.68,232.64,6.80244087]
[1732131547618,0.48595373,232.7,232.66,6.80244087]
[1732131547819,2.63255373,232.7,232.66,6.80244087]
[1732131552617,0.48595373,232.7,232.69,2.1467]
[1732131553018,0.48595373,232.7,232.68,6.80244087]
[1732131553321,0.48595373,232.7,232.69,2.1467]
[1732131557116,0.48595373,232.7,232.69,6.80244087]
[1732131558223,0.48595373,232.7,232.67,11.62934087]
[1732131558424,0.48595373,232.7,232.67,9.48244087]
[1732131559520,0.48595373,232.7,232.69,6.80244087]